bitfinex/quotes_SOLUSD_20220116
["timestamp","ask_amount","ask_price","bid_price","bid_amount"]
[1642363136434,10.3917,147.96,147.94,6.0613259]
[1642363136636,10.1417,147.96,147.94,3.02912593]
[1642363136837,56.8088,148.02,147.94,3.02912593]
[1642363137238,57.0588,148.02,147.94,3.02912593]
[1642363137436,36.26751474,148.01,147.94,3.02912593]
[1642363137636,36.26751474,148.01,147.94,25.69292593]
[1642363137839,0.25,148.01,147.94,25.94292593]
[1642363138038,33.7938,148.05,147.95,67.17]
[1642363138239,33.7938,148.05,147.96,23.4342]
[1642363138439,1.64032869,148.04,147.96,23.4342]
[1642363138866,44.42859248,148.03,147.97,33.85148609]
[1642363139468,10.1373,148.02,147.97,33.85148609]
[1642363139971,10.1373,148.02,147.97,34.10148609]
[1642363140167,10.1373,148.02,147.97,33.85148609]
[1642363141269,10.3873,148.02,147.97,33.85148609]
[1642363143170,10.1373,148.02,147.97,33.85148609]
[1642363143376,10.1373,148.02,147.96,23.4342]
[1642363143571,10.3873,148.02,147.93,8.08]
[1642363143772,19.84407588,148.02,147.92,79.223982]
[1642363144172,18.1433,148.02,147.92,79.223982]
[1642363144372,42.9825,148.02,147.93,22.7388]
[1642363144572,35.2265,148.02,147.94,40.41084304]
[1642363144975,10.3873,148.02,147.94,40.66084304]
[1642363145574,10.3873,148.02,147.94,40.41084304]
[1642363148575,10.3873,148.02,147.93,30.8188]
[1642363148776,10.3873,148.02,147.93,22.7388]
[1642363149577,12.08807588,148.02,147.93,22.7388]
[1642363150278,1.82883345,148.01,147.93,22.7388]
[1642363150482,10.1417,147.99,147.93,22.7388]
[1642363151078,10.3917,147.99,147.93,22.7388]
[1642363152879,13.0432853,147.98,147.93,22.7388]
[1642363153082,10.1408,147.97,147.93,22.7388]
[1642363153578,10.3908,147.97,147.93,22.7388]
[1642363153778,10.3908,147.97,147.92,117.93056996]
[1642363155381,26.05653345,148.01,147.92,118.18056996]
[1642363155382,1.82883345,148.01,147.92,118.18056996]
[1642363155782,1.82883345,148.01,147.93,67.17]
[1642363156182,1.82883345,148.01,147.94,23.1843]
[1642363156384,1.82883345,148.01,147.94,23.4343]
[1642363156584,11.96563345,148.03,147.94,23.4343]
[1642363157183,1.82883345,148.03,147.95,36.4955167]
[1642363157384,1.82883345,148.03,147.95,36.7455167]
[1642363157584,2.07883345,148.03,147.95,36.7455167]
[1642363157784,0.25,148.03,147.95,36.7455167]
[1642363157983,0.25,148.03,147.96,24.0097]
[1642363158186,2.07883345,148.04,147.96,24.0097]
[1642363158386,1.82883345,148.04,147.96,24.2597]
[1642363158988,11.96433345,148.05,147.96,24.2597]
[1642363159787,12.21433345,148.05,147.96,24.2597]
[1642363159990,10.3855,148.05,147.96,24.2597]
[1642363161792,44.02512654,148.04,147.96,24.2597]
[1642363162192,0.25,148.04,147.96,24.2597]
[1642363162594,0.25,148.04,147.97,67.17]
[1642363162991,0.25,148.04,147.97,67.42]
[1642363163194,0.25,148.04,147.98,38.70658796]
[1642363163392,10.3855,148.05,147.98,38.70658796]
[1642363164397,10.1355,148.05,147.98,38.95658796]
[1642363164594,10.3855,148.05,147.98,38.95658796]
[1642363165017,10.1355,148.05,147.98,38.95658796]
[1642363165218,11.96293345,148.07,147.99,67.17]
[1642363165419,12.21293345,148.07,147.99,67.42]
[1642363166021,12.21293345,148.07,147.99,90.1187]
[1642363166421,10.1341,148.07,147.99,90.1187]
[1642363167622,24.2216,148.08,147.99,90.1187]
[1642363167820,11.96163345,148.09,147.99,90.1187]
[1642363168422,48.86084138,148.09,147.99,90.1187]
[1642363168821,49.11084138,148.09,147.99,90.1187]
[1642363169021,47.28200793,148.09,147.99,90.1187]
[1642363172625,70.59480793,148.09,147.99,90.1187]
[1642363174726,10.3828,148.09,147.99,90.1187]
[1642363175226,10.1328,148.09,147.99,90.1187]
[1642363175626,41.63009197,148.08,147.99,90.1187]
[1642363175828,10.1341,148.07,147.99,90.1187]
[1642363176627,10.3841,148.07,147.99,90.1187]
[1642363178027,10.1341,148.07,147.99,90.1187]
[1642363183833,10.1341,148.07,147.99,96.1187]
[1642363184234,10.1328,148.09,147.99,96.1187]
[1642363186638,10.1328,148.09,147.99,90.1187]
[1642363186840,11.96163345,148.09,147.99,96.1187]
[1642363187239,11.96163345,148.09,147.99,22.9487]
[1642363187441,12.21163345,148.09,147.99,22.9487]
[1642363187642,37.12723345,148.09,147.99,22.9487]
[1642363188343,1.82883345,148.08,147.99,22.9487]
[1642363188541,11.96233345,148.08,147.99,22.9487]
[1642363188747,12.21233345,148.08,147.99,22.9487]
[1642363191144,11.96233345,148.08,147.99,22.9487]
[1642363191347,1.82883345,148.08,147.99,22.9487]
[1642363191946,2.07883345,148.08,147.99,22.9487]
[1642363192345,40.8090847,148.08,147.99,22.9487]
[1642363193144,1.82883345,148.08,147.99,22.9487]
[1642363193545,11.96203345,148.08,147.99,90.1187]
[1642363194145,51.33402892,148.08,147.99,90.1187]
[1642363196749,1.82883345,148.07,147.99,90.1187]
[1642363200084,1.82883345,148.07,147.99,89.8687]
[1642363200286,11.96303345,148.07,147.99,22.6987]
[1642363200584,12.21303345,148.07,147.99,22.6987]
[1642363200785,11.96303345,148.07,147.99,22.6987]
[1642363201191,11.96303345,148.07,147.96,10.00499845]
[1642363201384,35.32573345,148.07,147.96,1.92499845]
[1642363201586,37.02650933,148.07,147.96,1.92499845]
[1642363201985,45.35650933,148.07,147.96,1.92499845]
[1642363202284,10.1386,148.03,147.97,45.91162597]
[1642363202485,17.1456,148.03,147.97,45.91162597]
[1642363202683,17.3956,148.03,147.95,24.87319845]
[1642363202883,17.3956,148.03,147.95,1.92499845]
[1642363203285,19.22443345,148.03,147.92,81.14898045]
[1642363203485,43.14363345,148.03,147.92,81.14898045]
[1642363203687,43.14363345,148.03,147.93,50.41688014]
[1642363204587,1.82883345,148.02,147.93,50.41688014]
[1642363204887,10.1409,148.0,147.93,50.41688014]
[1642363205086,17.1549,148.0,147.92,79.223982]
[1642363205287,17.4049,148.0,147.92,79.223982]
[1642363206086,17.4049,148.0,147.93,45.56762643]
[1642363207288,10.3909,148.0,147.93,45.56762643]
[1642363208290,10.1409,148.0,147.93,45.56762643]
[1642363208589,10.1409,148.0,147.92,79.223982]
[1642363209692,10.4992419,147.96,147.92,111.1310136]
[1642363209895,10.4992419,147.96,147.92,79.223982]
[1642363210893,17.12514177,147.96,147.92,126.24064049]
[1642363211393,6.98344177,147.96,147.92,126.24064049]
[1642363211596,0.3575419,147.96,147.92,126.24064049]
[1642363211899,0.3575419,147.96,147.92,126.49064049]
[1642363212095,0.3575419,147.96,147.92,126.24064049]
[1642363212293,0.3575419,147.96,147.92,79.223982]
[1642363214296,10.4990419,147.96,147.92,79.223982]
[1642363214499,10.1415,147.96,147.92,65.01256395]
[1642363214898,0.3575419,147.94,147.92,64.48748995]
[1642363215698,3.75973008,147.94,147.92,64.48748995]
[1642363216397,10.1445,147.93,147.92,64.48748995]
[1642363217397,10.3945,147.93,147.92,64.48748995]
[1642363218699,10.1445,147.93,147.92,64.48748995]
[1642363220202,10.5020419,147.93,147.92,64.48748995]
[1642363220403,10.7520419,147.93,147.92,64.48748995]
[1642363222409,10.5020419,147.93,147.92,64.48748995]
[1642363222608,10.7520419,147.93,147.92,64.48748995]
[1642363223207,10.5020419,147.93,147.92,64.48748995]
[1642363223409,10.7520419,147.93,147.92,64.48748995]
[1642363223810,10.5020419,147.93,147.92,64.48748995]
[1642363224410,10.7520419,147.93,147.92,64.48748995]
[1642363232452,10.5020419,147.93,147.92,64.48748995]
[1642363232655,10.7520419,147.93,147.92,64.48748995]
[1642363233252,10.5020419,147.93,147.92,64.48748995]
[1642363233652,10.7520419,147.93,147.92,64.48748995]
[1642363233854,10.5020419,147.93,147.92,64.48748995]
[1642363234455,10.7520419,147.93,147.92,64.48748995]
[1642363234954,10.5020419,147.93,147.92,64.48748995]
[1642363235157,0.3575419,147.93,147.92,64.48748995]
[1642363235356,10.1423,147.95,147.93,3.02912593]
[1642363235554,10.1423,147.95,147.93,6.0613259]
[1642363236156,10.1423,147.95,147.92,64.48748995]
[1642363236555,30.88261201,147.96,147.93,6.0613259]
[1642363237155,31.13261201,147.96,147.93,6.0613259]
[1642363237356,31.13261201,147.96,147.92,64.48748995]
[1642363237760,41.27421201,147.96,147.92,64.48748995]
[1642363240365,41.02421201,147.96,147.92,64.48748995]
[1642363241663,75.64,147.95,147.86,1.92499845]
[1642363241863,10.1465,147.93,147.86,1.92499845]
[1642363242064,8.08,147.92,147.86,1.92499845]
[1642363242465,8.33,147.92,147.86,1.92499845]
[1642363242665,19.97420773,147.91,147.84,36.509403]
[1642363242866,8.08,147.9,147.84,36.509403]
[1642363243064,10.1481,147.89,147.8,1.92499845]
[1642363243265,10.1481,147.89,147.8,2.17499845]
[1642363243464,10.3981,147.89,147.8,2.17499845]
[1642363244065,7.78378518,147.88,147.81,44.02348095]
[1642363244265,17.93078518,147.88,147.81,44.02348095]
[1642363244467,17.93078518,147.88,147.81,44.27348095]
[1642363244666,18.18078518,147.88,147.81,44.02348095]
[1642363244866,18.18078518,147.88,147.81,44.27348095]
[1642363245468,10.397,147.88,147.81,44.27348095]
[1642363245866,10.147,147.88,147.81,44.27348095]
[1642363249768,18.2258,147.9,147.81,44.27348095]
[1642363250177,18.4758,147.9,147.81,44.27348095]
[1642363250381,18.4758,147.9,147.82,67.56]
[1642363250777,18.4758,147.9,147.82,67.81]
[1642363251405,18.2258,147.9,147.82,67.81]
[1642363252006,18.4758,147.9,147.82,67.81]
[1642363255909,18.4758,147.9,147.82,92.0777]
[1642363256610,18.4758,147.9,147.82,24.5177]
[1642363256814,18.4758,147.9,147.82,24.2677]
[1642363258413,18.4758,147.9,147.82,24.5177]
[1642363259214,18.4758,147.9,147.82,92.0777]
[1642363260013,18.4758,147.9,147.82,24.5177]
[1642363260718,18.4758,147.9,147.82,24.2677]
[1642363263115,18.4758,147.9,147.82,24.5177]
[1642363263915,10.1458,147.9,147.84,36.40094694]
[1642363264316,10.1458,147.9,147.84,36.65094694]
[1642363264718,10.1458,147.9,147.84,104.21094694]
[1642363264917,10.1458,147.9,147.84,36.65094694]
[1642363265822,37.88825098,147.92,147.84,36.65094694]
[1642363266020,0.25,147.9,147.84,36.65094694]
[1642363266219,37.88825098,147.92,147.84,36.65094694]
[1642363266220,38.13825098,147.92,147.84,36.65094694]
[1642363266919,38.13825098,147.92,147.84,104.21094694]
[1642363267722,10.3944,147.92,147.84,103.96094694]
[1642363268323,10.3944,147.92,147.84,36.40094694]
[1642363268720,32.03635901,147.92,147.84,103.96094694]
[1642363269119,32.03635901,147.92,147.84,104.21094694]
[1642363269520,32.03635901,147.92,147.84,36.65094694]
[1642363270825,32.03635901,147.92,147.84,36.40094694]
[1642363272226,1.82883345,147.91,147.84,36.40094694]
[1642363272426,2.07883345,147.91,147.84,36.40094694]
[1642363272627,10.1458,147.9,147.84,36.40094694]
[1642363272826,10.3958,147.9,147.84,36.40094694]
[1642363273933,10.3958,147.9,147.84,42.40094694]
[1642363276942,10.3958,147.9,147.84,36.40094694]
[1642363280160,12.22463345,147.9,147.84,36.40094694]
[1642363280362,11.97463345,147.9,147.84,36.40094694]
[1642363280861,11.97463345,147.9,147.84,36.65094694]
[1642363281463,11.97463345,147.9,147.84,36.40094694]
[1642363281869,10.3958,147.9,147.84,36.40094694]
[1642363283366,1.82883345,147.91,147.84,104.21094694]
[1642363284167,11.97323345,147.92,147.84,104.21094694]
[1642363284766,12.22323345,147.92,147.84,104.21094694]
[1642363285968,10.3944,147.92,147.84,104.21094694]
[1642363286670,12.22323345,147.92,147.84,104.21094694]
[1642363288376,10.3944,147.92,147.84,104.21094694]
[1642363289878,10.3944,147.92,147.84,36.65094694]
[1642363290782,12.22323345,147.92,147.84,36.65094694]
[1642363291480,12.22323345,147.92,147.84,104.21094694]
[1642363292581,10.3944,147.92,147.84,36.65094694]
[1642363292782,10.3944,147.92,147.84,104.21094694]
[1642363293282,10.3944,147.92,147.84,36.65094694]
[1642363293485,10.3944,147.92,147.84,36.40094694]
[1642363293684,32.25420921,147.92,147.84,36.40094694]
[1642363294083,32.22420921,147.92,147.84,36.40094694]
[1642363294285,12.19323345,147.92,147.84,36.40094694]
[1642363294985,12.19323345,147.92,147.84,36.65094694]
[1642363295386,4.94827495,147.91,147.84,36.65094694]
[1642363295790,10.1472,147.89,147.84,36.65094694]
[1642363296210,10.3972,147.89,147.84,36.35364694]
[1642363300413,18.18859721,147.89,147.84,36.35364694]
[1642363300615,18.18859721,147.89,147.79,1.92499845]
[1642363300815,10.1491,147.86,147.79,1.92499845]
[1642363301016,18.7981,147.86,147.79,1.92499845]
[1642363301222,19.0481,147.86,147.79,1.92499845]
[1642363301619,20.0138957,147.85,147.79,1.92499845]
[1642363301817,20.2638957,147.85,147.79,1.92499845]
[1642363302617,20.2638957,147.85,147.76,63.48299737]
[1642363303418,10.1508,147.84,147.76,25.79639845]
[1642363303821,10.4008,147.84,147.76,25.79639845]
[1642363304222,10.4008,147.84,147.74,2.26330004]
[1642363304421,35.1705,147.84,147.77,38.72545095]
[1642363304721,35.1705,147.84,147.74,2.26330004]
[1642363304921,8.08,147.83,147.74,2.26330004]
[1642363305125,10.1547,147.81,147.74,2.26330004]
[1642363305523,10.4047,147.81,147.74,38.24787544]
[1642363305924,10.1547,147.81,147.75,1.23282823]
[1642363306124,10.1547,147.81,147.74,38.49787544]
[1642363306525,10.1547,147.81,147.74,39.73070367]
[1642363306730,11.97943345,147.83,147.75,67.56]
[1642363306925,11.97943345,147.83,147.75,67.81]
[1642363307126,11.97943345,147.83,147.77,48.68064857]
[1642363307828,1.82883345,147.83,147.77,50.1634768]
[1642363308027,1.82883345,147.85,147.78,67.56]
[1642363308229,1.82883345,147.85,147.77,48.93064857]
[1642363308428,1.82883345,147.85,147.77,48.68064857]
[1642363308826,2.07883345,147.85,147.77,48.68064857]
[1642363309031,0.25,147.85,147.77,48.68064857]
[1642363309528,10.1491,147.85,147.77,48.68064857]
[1642363309928,10.3991,147.85,147.77,48.68064857]
[1642363310231,12.22793345,147.85,147.77,48.68064857]
[1642363310427,14.21223441,147.85,147.77,48.68064857]
[1642363310830,14.21223441,147.85,147.77,48.93064857]
[1642363311029,12.38340096,147.85,147.77,48.93064857]
[1642363311228,12.38340096,147.85,147.77,48.68064857]
[1642363311434,12.38340096,147.85,147.77,47.68064857]
[1642363312634,14.21223441,147.85,147.74,0.33830159]
[1642363312837,10.1547,147.81,147.74,0.33830159]
[1642363313036,34.1318,147.81,147.74,0.33830159]
[1642363313236,34.3818,147.81,147.74,0.33830159]
[1642363313644,20.52925798,147.8,147.74,40.74849898]
[1642363313838,10.1548,147.79,147.74,40.74849898]
[1642363314237,10.4048,147.79,147.74,40.74849898]
[1642363314439,10.4048,147.79,147.74,0.33830159]
[1642363314638,33.5775,147.79,147.74,0.33830159]
[1642363316241,1.70077588,147.78,147.74,0.33830159]
[1642363316441,10.1568,147.77,147.74,0.33830159]
[1642363316840,10.4068,147.77,147.74,0.33830159]
[1642363317045,10.1568,147.77,147.74,0.33830159]
[1642363318142,10.1529,147.8,147.74,0.33830159]
[1642363318343,8.08,147.83,147.74,0.33830159]
[1642363318644,8.08,147.85,147.74,0.33830159]
[1642363319042,24.68695712,147.84,147.74,0.33830159]
[1642363319444,10.1513,147.82,147.74,0.33830159]
[1642363319647,4.11833579,147.81,147.74,0.33830159]
[1642363320846,0.25,147.81,147.74,0.33830159]
[1642363321251,23.084,147.83,147.74,0.33830159]
[1642363321447,10.1518,147.81,147.74,0.33830159]
[1642363321847,38.52862058,147.81,147.74,36.67044456]
[1642363322148,10.4018,147.81,147.74,36.67044456]
[1642363322374,10.4018,147.81,147.74,36.92044456]
[1642363323475,10.4018,147.81,147.74,36.67044456]
[1642363323676,10.4018,147.81,147.74,36.92044456]
[1642363328182,16.63011762,147.81,147.74,36.92044456]
[1642363329384,10.4018,147.81,147.74,36.92044456]
[1642363329784,10.4018,147.81,147.74,36.67044456]
[1642363331386,10.1518,147.81,147.74,36.92044456]
[1642363332185,17.98715876,147.81,147.74,36.92044456]
[1642363332485,10.1518,147.81,147.74,36.92044456]
[1642363332689,10.4018,147.81,147.74,36.92044456]
[1642363333586,0.25,147.81,147.74,36.92044456]
[1642363333785,0.25,147.81,147.74,61.56074456]
[1642363333985,50.04827816,147.83,147.74,61.56074456]
[1642363334585,50.04827816,147.83,147.74,61.31074456]
[1642363334787,10.1511,147.82,147.74,61.31074456]
[1642363335289,10.4011,147.82,147.74,61.31074456]
[1642363335688,12.22993345,147.82,147.74,61.31074456]
[1642363335888,12.22993345,147.82,147.74,61.56074456]
[1642363336089,12.22993345,147.82,147.74,61.31074456]
[1642363336691,12.22993345,147.82,147.74,61.56074456]
[1642363337088,10.4011,147.82,147.74,61.56074456]
[1642363337690,10.4011,147.82,147.74,61.31074456]
[1642363337892,12.22993345,147.82,147.74,61.31074456]
[1642363339991,12.22993345,147.82,147.74,61.56074456]
[1642363340292,12.22993345,147.82,147.74,61.31074456]
[1642363340694,10.4011,147.82,147.74,61.31074456]
[1642363341695,12.22993345,147.82,147.74,61.31074456]
[1642363342497,12.22993345,147.82,147.74,61.56074456]
[1642363343796,10.4011,147.82,147.74,61.56074456]
[1642363346499,12.22993345,147.82,147.74,61.56074456]
[1642363346899,12.22993345,147.82,147.74,36.92044456]
[1642363347905,12.22993345,147.82,147.74,36.67044456]
[1642363348831,4.93992893,147.81,147.74,36.67044456]
[1642363349233,0.25,147.81,147.74,36.67044456]
[1642363349629,10.4018,147.81,147.74,36.67044456]
[1642363351829,0.25,147.81,147.74,104.48044456]
[1642363352029,0.25,147.81,147.75,24.8957]
[1642363352230,2.07883345,147.82,147.75,24.8957]
[1642363352429,1.82883345,147.82,147.75,25.1457]
[1642363353433,11.97933345,147.83,147.75,25.1457]
[1642363353830,12.22933345,147.83,147.75,24.8957]
[1642363354832,12.22933345,147.83,147.75,92.4557]
[1642363355034,12.22933345,147.83,147.75,24.8957]
[1642363355832,12.22933345,147.83,147.75,92.4557]
[1642363357932,12.22933345,147.83,147.75,99.4347]
[1642363358132,12.22933345,147.83,147.75,99.6847]
[1642363358735,11.97933345,147.83,147.75,99.6847]
[1642363359033,10.1505,147.83,147.75,99.6847]
[1642363359436,1.82883345,147.84,147.75,99.6847]
[1642363360837,11.97863345,147.84,147.75,92.7057]
[1642363361040,10.1498,147.84,147.75,92.7057]
[1642363361239,10.3998,147.84,147.75,92.7057]
[1642363361941,10.1498,147.84,147.75,92.7057]
[1642363363942,10.3998,147.84,147.75,92.7057]
[1642363364545,0.25,147.84,147.75,92.7057]
[1642363364747,0.25,147.84,147.75,110.2958]
[1642363364943,2.07883345,147.85,147.75,110.2958]
[1642363365543,0.25,147.85,147.75,110.2958]
[1642363366045,35.11953345,147.86,147.77,40.30164832]
[1642363366247,35.11953345,147.86,147.78,23.5301]
[1642363366443,35.11953345,147.86,147.78,91.3401]
[1642363366646,35.11953345,147.86,147.78,23.7801]
[1642363368245,11.97733345,147.86,147.78,23.7801]
[1642363369748,12.22733345,147.86,147.78,23.5301]
[1642363369948,12.22733345,147.86,147.78,23.7801]
[1642363370250,12.22733345,147.86,147.78,23.5301]
[1642363370650,4.80745994,147.85,147.78,23.5301]
[1642363370850,15.20675994,147.85,147.78,23.5301]
[1642363371451,15.20675994,147.85,147.78,91.0901]
[1642363371652,15.20675994,147.85,147.78,91.3401]
[1642363371851,15.20675994,147.85,147.78,23.5301]
[1642363372051,15.20675994,147.85,147.77,40.30164832]
[1642363373253,17.03559339,147.85,147.77,40.30164832]
[1642363373452,17.03559339,147.85,147.78,24.6473]
[1642363376987,1.82883345,147.84,147.78,24.6473]
[1642363377184,10.1514,147.83,147.78,24.6473]
[1642363377483,10.1514,147.83,147.77,40.30164832]
[1642363377684,10.4014,147.83,147.77,40.30164832]
[1642363380684,10.4014,147.83,147.77,40.55164832]
[1642363381089,10.4014,147.83,147.77,40.30164832]
[1642363381385,32.87931534,147.83,147.77,40.30164832]
[1642363382788,32.87931534,147.83,147.76,24.9113]
[1642363383790,34.70814879,147.83,147.76,24.9113]
[1642363386190,34.70814879,147.83,147.74,0.33830159]
[1642363386392,24.695,147.82,147.74,0.33830159]
[1642363386692,6.32737757,147.79,147.74,0.33830159]
[1642363387193,6.57737757,147.79,147.74,0.33830159]
[1642363388291,10.4033,147.79,147.74,0.33830159]
[1642363390099,8.19618484,147.78,147.74,0.33830159]
[1642363390794,10.4033,147.79,147.74,0.33830159]
[1642363400810,37.94537747,147.78,147.66,24.50131311]
[1642363401011,10.1595,147.75,147.66,24.00131311]
[1642363401237,40.9834,147.75,147.66,24.00131311]
[1642363401440,67.56,147.74,147.65,1.92499845]
[1642363401645,0.92927996,147.73,147.65,1.92499845]
[1642363402240,0.92927996,147.73,147.62,26.67409845]
[1642363402440,10.1615,147.72,147.62,47.17409845]
[1642363402841,10.4115,147.72,147.62,47.42409845]
[1642363404044,10.4115,147.72,147.62,45.4991]
[1642363404045,11.69511273,147.72,147.62,45.4991]
[1642363406448,11.44511273,147.72,147.62,45.4991]
[1642363407549,35.27861273,147.72,147.62,45.4991]
[1642363407747,35.52861273,147.72,147.62,45.4991]
[1642363408349,11.44511273,147.72,147.63,67.56]
[1642363408551,11.44511273,147.72,147.65,67.56]
[1642363408950,11.44511273,147.72,147.65,67.81]
[1642363409953,11.44511273,147.72,147.65,0.25]
[1642363410155,11.44511273,147.72,147.64,108.71530082]
[1642363410855,11.44511273,147.72,147.64,41.15530082]
[1642363411256,11.69511273,147.72,147.64,41.15530082]
[1642363411656,11.69511273,147.72,147.64,108.71530082]
[1642363412588,11.69511273,147.72,147.64,41.15530082]
[1642363412788,11.69511273,147.72,147.64,40.90530082]
[1642363420395,11.69511273,147.72,147.64,41.15530082]
[1642363420794,11.69511273,147.72,147.64,0.25]
[1642363421398,11.69511273,147.72,147.62,45.4991]
[1642363421798,11.69511273,147.72,147.63,37.6688954]
[1642363422298,11.69511273,147.72,147.64,22.9965]
[1642363422699,11.69511273,147.72,147.64,23.2465]
[1642363425101,11.69511273,147.72,147.64,0.25]
[1642363425403,11.69511273,147.72,147.63,37.9188954]
[1642363425703,11.69511273,147.72,147.64,23.2113]
[1642363425900,11.69511273,147.72,147.64,23.4613]
[1642363428701,11.69511273,147.72,147.64,23.2113]
[1642363429304,11.69511273,147.72,147.63,67.56]
[1642363429502,11.69511273,147.72,147.62,28.8291]
[1642363429503,11.69511273,147.72,147.61,1.92499845]
[1642363429702,10.1611,147.68,147.61,1.92499845]
[1642363429901,10.4111,147.68,147.61,2.17499845]
[1642363430301,37.63987765,147.68,147.62,39.32147842]
[1642363430701,37.63987765,147.68,147.62,0.25]
[1642363430901,37.63987765,147.68,147.6,26.56949845]
[1642363431301,37.63987765,147.68,147.6,94.37949845]
[1642363431507,37.63987765,147.68,147.6,94.12949845]
[1642363431703,37.63987765,147.68,147.61,45.02109746]
[1642363433103,37.63987765,147.68,147.61,45.27109746]
[1642363433303,37.38987765,147.68,147.61,45.27109746]
[1642363435905,37.38987765,147.68,147.61,112.83109746]
[1642363436408,37.38987765,147.68,147.61,67.81]
[1642363437308,10.4111,147.68,147.61,67.81]
[1642363437909,10.4111,147.68,147.61,67.56]
[1642363438311,10.4111,147.68,147.62,45.36216764]
[1642363439913,10.4111,147.68,147.62,45.61216764]
[1642363440614,10.4111,147.68,147.62,45.36216764]
[1642363441915,10.4111,147.68,147.62,45.61216764]
[1642363442516,10.1611,147.68,147.62,45.61216764]
[1642363442720,37.75360678,147.7,147.62,45.61216764]
[1642363442914,37.75360678,147.7,147.62,113.17216764]
[1642363443515,37.75360678,147.7,147.62,112.92216764]
[1642363443715,37.75360678,147.7,147.62,113.17216764]
[1642363443916,37.75360678,147.7,147.62,112.92216764]
[1642363444114,38.00360678,147.7,147.62,112.92216764]
[1642363445419,38.00360678,147.7,147.62,113.17216764]
[1642363445618,10.4093,147.7,147.62,113.17216764]
[1642363449619,10.4093,147.7,147.62,112.92216764]
[1642363450020,10.4093,147.7,147.62,121.00216764]
[1642363450622,10.4093,147.7,147.62,121.25216764]
[1642363452431,10.4093,147.7,147.63,23.4401]
[1642363453524,10.4093,147.7,147.64,67.56]
[1642363453725,10.4093,147.7,147.65,47.03253945]
[1642363457129,1.82883345,147.71,147.65,47.03253945]
[1642363457530,1.82883345,147.71,147.65,70.96213945]
[1642363458428,0.25,147.71,147.65,71.21213945]
[1642363458831,2.07883345,147.73,147.65,71.21213945]
[1642363459032,1.82883345,147.73,147.66,67.56]
[1642363459434,1.82883345,147.73,147.66,67.81]
[1642363459631,11.98613345,147.73,147.63,8.08]
[1642363459832,1.70077588,147.72,147.62,1.92499845]
[1642363460045,1.70077588,147.72,147.62,26.40709845]
[1642363460246,1.82883345,147.73,147.63,75.64]
[1642363460447,1.82883345,147.73,147.64,23.558]
[1642363460646,1.82883345,147.71,147.65,44.41098257]
[1642363460848,1.82883345,147.71,147.65,111.97098257]
[1642363461261,1.82883345,147.71,147.65,112.22098257]
[1642363461462,12.23733345,147.71,147.65,112.22098257]
[1642363461663,10.4085,147.71,147.65,112.22098257]
[1642363462865,10.1585,147.71,147.65,112.22098257]
[1642363463264,10.4085,147.71,147.65,112.22098257]
[1642363465670,0.25,147.71,147.65,112.22098257]
[1642363465865,12.23633345,147.73,147.66,23.169]
[1642363466666,12.23633345,147.73,147.66,90.729]
[1642363468272,12.23633345,147.73,147.66,90.979]
[1642363469069,10.1575,147.73,147.66,90.979]
[1642363469871,1.82883345,147.74,147.66,90.979]
[1642363470079,1.82883345,147.74,147.66,67.81]
[1642363470574,2.07883345,147.74,147.66,67.81]
[1642363470776,2.07883345,147.74,147.66,67.56]
[1642363471179,2.07883345,147.74,147.66,67.81]
[1642363471375,10.157,147.73,147.66,67.81]
[1642363471780,10.157,147.73,147.64,8.08]
[1642363471781,11.80254196,147.73,147.64,8.08]
[1642363471976,11.80254196,147.73,147.62,10.00499845]
[1642363472577,13.63137541,147.73,147.62,10.00499845]
[1642363472776,13.63137541,147.73,147.63,36.76535226]
[1642363472977,13.38137541,147.73,147.64,67.56]
[1642363473182,1.82883345,147.73,147.64,75.64]
[1642363473484,1.82883345,147.73,147.64,77.14284211]
[1642363473683,1.82883345,147.73,147.65,22.8017]
[1642363473880,1.82883345,147.73,147.66,10.1543]
[1642363474080,1.82883345,147.73,147.66,11.40714211]
[1642363474281,1.82883345,147.73,147.67,67.56]
[1642363474480,1.82883345,147.73,147.68,46.36946035]
[1642363474680,1.82883345,147.76,147.69,67.56]
[1642363474881,1.82883345,147.76,147.69,91.0845]
[1642363475081,1.82883345,147.76,147.69,98.9725]
[1642363475881,1.82883345,147.77,147.69,98.9725]
[1642363476683,1.82883345,147.77,147.69,100.22534211]
[1642363477484,1.82883345,147.78,147.69,118.45794211]
[1642363477685,1.82883345,147.78,147.7,0.26]